Cogmind - Beta 14 @@@ ROGUE MODE // 2025.03.29 @ 22:55:19 Player: Finestep Result: Destroyed by D-63 Destroyer with Heavy Rocket Launcher Performance ------------- Evolutions (5) 2500 Regions Visited (11) 2200 Robots Destroyed (181) 905 Value Destroyed (6136) 6136 Prototype IDs (43) 860 Alien Tech Used (0) 0 Bonus (2121) 2121 TOTAL SCORE: 14722 Bonus ------- High Alert Combat Kills 1118 Follower Combat Kills 672 Registered with UFD 300 Met Data Miner 300 Friendly Fire -269 Cogmind --------- Core Integrity 0/1000 Matter 254/300 Energy 143/500 System Corruption 32% Temperature Hot (282) Movement Walking (190) Ox1 Location -5/Extension Parts ------- > --- POWER (2) -------- Micro Antimatter Reactor > --- PROPULSION (4) --- Flexi-carbon Leg > --- UTILITY (9) ------ High-capacity Storage Unit Energy Well (fused) Advanced Gravity Neutralizer Advanced Terrain Scanner Armor Integrity Analyzer > --- WEAPON (2) ------- Improved KE Penetrator Heavy Shock Bomb Launcher > --- INVENTORY (20) --- Fusion Compressor Neutrino Core Antimatter Reactor Antimatter Reactor Carbon-fiber Leg Carbon-fiber Leg Energy Well (350) Matter Compressor (250) Matter Compressor (250) Hardened Heavy Armor Plating Powered Armor High-powered Tractor Beam Advanced Plasma Cannon Dirty Datajack (20) CPS Tube (2) Plasma Sword Vortex Trap Peak State ------------ > --- POWER ------------ Micro Nuclear Core Micro Fission Core > --- PROPULSION ------- Overtuned Huge Scrapsphere Overtuned Huge Scrapsphere > --- UTILITY ---------- High-capacity Storage Unit Enhanced Optical Array Kinecellerator Improved Weapon Cycler Improved Transmission Jammer Improved Medium Armor Plating Enhanced Scrap Shield Powered Armor > --- WEAPON ----------- Improved KE Penetrator Improved KE Penetrator > --- INVENTORY -------- Fusion Compressor Micro Fission Core Improved Cooling System Energy Well Energy Well Matter Compressor High-powered Tractor Beam Proton Cannon Advanced Plasma Cannon Advanced Plasma Cannon Improved KE Penetrator Improved KE Penetrator Improved KE Penetrator Enhanced Coil Gun Heavy Shock Bomb Launcher Dirty Datajack CPS Tube Plasma Sword Plasma Sword Vortex Trap [Rating: 100] Favorites ----------- Power Light Deuterium Engine Engine Light Deuterium Engine Power Core Micro Fission Core Reactor Compact Particle Reactor Propulsion Overtuned Huge Scrapsphere Treads Armored Treads Leg Carbon-fiber Leg Wheel Overtuned Huge Scrapsphere Utility High-capacity Storage Unit Device Scrap Suit Storage High-capacity Storage Unit Processor Advanced Targeting Computer Protection Layered Medium Armor Plating Weapon Heavy Machine Gun Energy Cannon Powered Cannon Ballistic Gun Heavy Machine Gun Ballistic Cannon Flak Cannon Launcher Subdweller Shrapnel Launcher Special Weapon Mining Laser Slashing Weapon Plasma Sword Build | -11 -10 -10 -8 -8 -6 -6 -6 -6 -5 -5 -5 ------- Run | Yrd Mat Sub Rec Scr Fac Low Low Dat Pro Fac Ext Slots Evolved 10 | . . . . . 8 . . . . 2 . Power 1 | . . . . . . . . . . 1 . Propulsion 2 | . . . . . 2 . . . . . . Utility 7 | . . . . . 6 . . . . 1 . Weapon . | . . . . . . . . . . . . Parts Attached 156 | 7 7 11 4 10 40 . . . 2 32 43 Power 19 | 1 . 1 1 1 5 . . . . 6 4 Engine 5 | 1 . 1 . 1 2 . . . . . . Core 12 | . . . 1 . 3 . . . . 6 2 Reactor 2 | . . . . . . . . . . . 2 Propulsion 21 | 2 2 3 1 1 4 . . . . . 8 Treads 10 | . 2 3 1 1 2 . . . . . 1 Leg 7 | 2 . . . . . . . . . . 5 Wheel 4 | . . . . . 2 . . . . . 2 Hover . | . . . . . . . . . . . . Flight . | . . . . . . . . . . . . Utility 60 | 2 2 . . 2 20 . . . . 18 16 Device 26 | 1 . . . . 12 . . . . 8 5 Storage 5 | 1 1 . . . 1 . . . . . 2 Processor 10 | . 1 . . 2 3 . . . . 3 1 Hackware . | . . . . . . . . . . . . Protection 19 | . . . . . 4 . . . . 7 8 Artifact . | . . . . . . . . . . . . Weapon 56 | 2 3 7 2 6 11 . . . 2 8 15 Energy Gun . | . . . . . . . . . . . . Energy Cannon 9 | . . . . . 4 . . . . 2 3 Ballistic Gun 34 | 2 3 3 2 5 7 . . . 2 5 5 Ballistic Cannon 3 | . . 1 . 1 . . . . . . 1 Launcher 7 | . . 1 . . . . . . . . 6 Special Weapon 2 | . . 2 . . . . . . . . . Impact Weapon . | . . . . . . . . . . . . Slashing Weapon 1 | . . . . . . . . . . 1 . Piercing Weapon . | . . . . . . . . . . . . Special Melee Weapon . | . . . . . . . . . . . . Unidentified Prototypes 6 | . 1 . . . . . . . . 3 2 Corrupted Parts 2 | . . . . . . . . . . . 2 System Corruption 16 | . . . . . . . . . . . 16 Parts Lost 53 | . . 6 . . 4 . . . 1 10 32 Power 7 | . . 2 . . 1 . . . . 1 3 Propulsion 11 | . . 3 . . 2 . . . . . 6 Utility 24 | . . . . . 1 . . . . 8 15 Weapon 11 | . . 1 . . . . . . 1 1 8 Highest Loss Streak 11 | . . 2 . . 2 . . . 1 7 11 To Critical Strikes . | . . . . . . . . . . . . Average Slot Usage (%) 91 | . 99 98 99 99 86 75 75 75 77 75 84 Engine 6 | . 14 13 . 11 5 6 6 6 6 . . Core 4 | . . . 13 2 1 6 6 6 3 9 6 Treads 16 | . 23 27 28 28 16 . . . . . . Leg 1 | . 4 . . . . . . . . . 7 Wheel 3 | . . . . . 4 12 12 12 12 11 7 Device 7 | . 3 . . . 18 12 12 12 12 15 12 Storage 10 | . 14 14 14 14 6 6 6 6 6 5 10 Processor 12 | . 10 14 14 14 13 18 18 18 18 8 9 Protection 3 | . . . . . 5 6 6 6 6 9 11 Ballistic Gun 15 | . 27 22 19 23 10 . . . 5 9 7 Ballistic Cannon 2 | . . 2 7 4 . . . . . . . Peak Build Rating 100 | 9 16 17 21 32 87 87 87 87 87 100 99 Average Rating 50 | 5 13 15 19 26 72 86 87 87 82 89 83 On Entrance 51 | . 9 15 15 21 32 86 87 87 87 78 99 Naked Turns . | . . . . . . . . . . . . Heaviest Build 106 | 12 49 51 51 56 90 84 84 84 84 106 99 Greatest Support 88 | 20 43 43 43 50 88 40 40 40 40 40 81 Greatest Overweight (x) 19 | 1 1 1 1 1 2 2 2 2 2 5 19 Average Overweight (x) 1 | . . 1 1 1 . 2 2 2 1 2 2 Largest Inventory Capacity 20 | 8 20 20 20 20 20 20 20 20 20 20 20 Average Capacity 19 | 7 16 20 20 20 20 20 20 20 20 20 20 Most Carried 20 | 8 18 20 20 20 20 20 20 20 20 20 20 Average Carried 18 | 5 12 19 19 19 19 19 20 20 19 18 17 Final Capacity 20 | 8 20 20 20 20 20 20 20 20 20 20 20 Final Carried 20 | 8 18 20 20 20 20 20 20 20 19 20 18 Class Distribution -------------------- 62% | Mutant 18% | Scavenger-Mutant 18% | Scavenger-Scrapper Dominant Class ---------------- Mutant | -10/Materials Mutant | -10/Subcaves Mutant | -8/Recycling Mutant | -8/Scraptown Mutant | -6/Factory Scavenger-Scrapper | -6/Lower Caves Scavenger-Scrapper | -6/Lower Caves Scavenger-Scrapper | -6/Data Miner Scavenger-Scrapper | -5/Proximity Caves Scavenger-Scrapper | -5/Factory Scavenger-Mutant | -5/Extension Resources | -11 -10 -10 -8 -8 -6 -6 -6 -6 -5 -5 -5 ----------- Run | Yrd Mat Sub Rec Scr Fac Low Low Dat Pro Fac Ext Matter Collected 7761 | 302 216 234 419 275 2215 42 . . 123 1701 2234 Remotely 411 | . . . . . 411 . . . . . . Salvage Created 9909 | 150 403 279 568 . 2160 368 208 . 246 2711 2816 Parts 451 | 11 35 30 20 . 95 15 2 . 20 114 109 Haulers Intercepted 5 | . 1 . . . 1 . . . . 3 . Recyclers Shooed 22 | . 1 . 7 . 8 . . . . 4 2 Parts Field Recycled . | . . . . . . . . . . . . Retrieved Matter . | . . . . . . . . . . . . Parts Self-Destructed 43 | . . 4 . . . 15 5 . 19 . . Prevented . | . . . . . . . . . . . . Kills | -11 -10 -10 -8 -8 -6 -6 -6 -6 -5 -5 -5 ------- Run | Yrd Mat Sub Rec Scr Fac Low Low Dat Pro Fac Ext Combat Hostiles Destroyed 115 | . 8 9 1 . 18 7 . . 8 27 37 Guns 71 | . 8 5 . . 8 . . . 5 21 24 Cannons 20 | . . . 1 . 6 4 . . 2 3 4 AOE 15 | . . 4 . . 4 . . . . . 7 Classes Destroyed 24 | 2 5 3 2 . 2 1 . . 2 4 3 Worker 9 | . . . . . 4 . . . . 5 . Builder 5 | . . . 1 . . . . . . 1 3 Tunneler 4 | 3 . . . . 1 . . . . . . Hauler 5 | . 1 . . . 1 . . . . 3 . Recycler 26 | 1 . . 7 . 9 . . . . 6 3 Minesweeper 1 | . . . . . . . . . 1 . . Mechanic 1 | . . . . . . . . . . 1 . Operator 2 | . 1 . . . 1 . . . . . . Drone 2 | . . . . . . . . . 2 . . Turret 2 | . . 2 . . . . . . . . . Watcher 10 | . 2 . . . 3 . . . . 4 1 Swarmer 29 | . 2 4 . . 4 3 . . 4 8 4 Grunt 50 | . 6 . . . 11 4 . . 1 7 21 Brawler 3 | . . . . . . . . . . 1 2 Duelist 2 | . . . . . . . . . . 1 1 Protector 1 | . . . . . . . . . . . 1 Sentry 9 | . . . 1 . . . . . . 3 5 Demolisher 1 | . . . . . . . . . . . 1 Hunter 1 | . . . . . . . . . . 1 . Programmer 11 | . . . . . 3 . . . 1 6 1 Behemoth 1 | . . . . . . . . . . . 1 Artisan 2 | . . 2 . . . . . . . . . Subdweller 5 | . . 5 . . . . . . . . . Samaritan 1 | . . . . . . 1 . . . . . Savage 1 | . . . . . . . . . . . 1 Best Kill Streak 9 | 3 3 6 8 . 9 3 . . 4 7 6 Combat Bots Only 5 | . 2 4 1 . 4 3 . . 4 4 5 Max Kills in Single Turn 4 | 1 1 2 2 . 4 1 . . 1 2 4 Gunslinging 1 | . . . . . . . . . . 1 . Exploded 4 | . . 2 . . 4 . . . . . 3 Melee . | . . . . . . . . . . . . Uniques/NPCs Destroyed . | . . . . . . . . . . . . Combat | -11 -10 -10 -8 -8 -6 -6 -6 -6 -5 -5 -5 -------- Run | Yrd Mat Sub Rec Scr Fac Low Low Dat Pro Fac Ext Hostile Shots Fired 817 | . 32 38 6 . 87 30 . . 23 276 325 Missed 212 | . 9 11 . . 25 11 . . 5 70 81 Damage Taken 12481 | . 286 772 92 . 1430 355 . . 348 3501 5697 Core 1453 | . 92 64 29 . 136 23 . . 61 236 812 Absorbed by Shields 588 | . . . . . 137 . . . . 451 . Redirected to Shielding 89 | . . . . . . . . . . . 89 Regen/Repaired (Parts) 145 | . . . . . 40 . . . 14 91 . Core Remaining (%) 66 | 100 . . . 26 . . . . 74 . . Volleys Fired 702 | 8 35 44 30 . 102 29 29 . 30 197 198 Largest 2 | 2 2 2 2 . 2 1 1 . 2 2 2 Hottest 155 | 40 46 100 62 . 90 40 40 . 60 123 155 Shots Fired 1196 | 16 70 71 60 . 179 29 29 . 42 357 343 Gun 937 | 16 70 55 31 . 154 . . . 24 302 285 Cannon 224 | . . . 29 . 25 29 29 . 18 55 39 Launcher 24 | . . 5 . . . . . . . . 19 Special 11 | . . 11 . . . . . . . . . Kinetic 986 | 16 70 60 60 . 154 . . . 24 302 300 Thermal 170 | . . 11 . . 22 29 29 . 18 39 22 Explosive . | . . . . . . . . . . . . Electromagnetic 40 | . . . . . 3 . . . . 16 21 Robot Hit Streak 32 | 6 9 32 7 . 18 10 2 . 9 20 11 Robot Miss Streak 8 | 3 5 2 3 . 3 3 1 . 5 8 6 Penetration Max 1 | . . . . . . . . . . 1 1 Secondary Targets 7 | . . 1 . . . . . . . 5 1 Max Gunslinging Chain 1 | . . 1 . . . . . . . 1 1 Shots Hit Robots 682 | 11 43 42 37 . 128 16 4 . 22 189 190 Core Hits 326 | 6 18 21 11 . 70 4 3 . 9 79 105 Critical Kills 22 | . . . . . 2 3 . . 1 10 6 Critical Parts Destroyed 20 | . . . . . 1 . . . . 7 12 Critical Strikes 51 | . . . 4 . 3 3 . . 1 19 21 Meltdown 6 | . . . . . . 3 . . 1 2 . Destroy 41 | . . . . . 3 . . . . 17 21 Blast 4 | . . . 4 . . . . . . . . Melee Attacks . | . . . . . . . . . . . . Impact . | . . . . . . . . . . . . Slashing . | . . . . . . . . . . . . Piercing . | . . . . . . . . . . . . Sneak Attacks . | . . . . . . . . . . . . Combat Hostiles . | . . . . . . . . . . . . Follow-up Attacks . | . . . . . . . . . . . . Damage Inflicted 20698 | 105 611 1040 724 . 3515 799 197 . 679 5543 7485 Guns 13197 | 105 605 585 303 . 2029 . . . 365 4389 4816 Cannons 4437 | . . . 421 . 957 799 197 . 314 1146 603 Explosions 3039 | . . 455 . . 518 . . . . . 2066 Melee . | . . . . . . . . . . . . Ramming 25 | . 6 . . . 11 . . . . 8 . Kinetic 14184 | 105 605 1040 724 . 2029 . . . 365 4389 4927 Thermal 4562 | . . . . . 1409 799 197 . 314 753 1090 Explosive . | . . . . . . . . . . . . Electromagnetic 1927 | . . . . . 66 . . . . 393 1468 Impact . | . . . . . . . . . . . . Slashing . | . . . . . . . . . . . . Piercing . | . . . . . . . . . . . . Highest Corruption 32 | . . . . . 1 1 1 1 1 14 32 Average Corruption 9 | . . . . . 1 1 1 1 1 11 15 Corruption Purged 5 | . . . . . . . . . . 5 . Corruption Blocked . | . . . . . . . . . . . . Effects 186 | . . . . . 8 2 1 1 5 63 106 Message Errors 30 | . . . . . 3 . . . . 12 15 Matter Fused 43 | . . . . . 3 1 . 1 2 13 23 Heat Flow Errors 20 | . . . . . 2 . . . 1 4 13 Energy Discharges 29 | . . . . . . . . . 1 9 19 Parts Rejected 2 | . . . . . . . . . . 1 1 Parts Fused 3 | . . . . . . 1 . . . 1 1 Data Loss (minor) 20 | . . . . . . . 1 . . 6 13 Data Loss (major) 9 | . . . . . . . . . 1 2 6 Misfires 14 | . . . . . . . . . . 8 6 Alerts 2 | . . . . . . . . . . 2 . Weapon Failures 14 | . . . . . . . . . . 5 9 Overload Shots . | . . . . . . . . . . . . Overflow Damage 407 | . . 14 9 . 152 68 29 . 22 37 76 Projectiles 252 | . . . 9 . 87 68 29 . 22 37 . Explosions 155 | . . 14 . . 65 . . . . . 76 Melee . | . . . . . . . . . . . . Knockbacks 5 | . . . 5 . . . . . . . . Impact . | . . . . . . . . . . . . Kinetic 4 | . . . 4 . . . . . . . . Secondary 1 | . . . 1 . . . . . . . . Self-Inflicted Damage 9 | . . . . . 5 . . . . 4 . Shots . | . . . . . . . . . . . . Rammed 3 | . 1 . . . 1 . . . . 1 . Targets Rammed 3 | . 1 . . . 1 . . . . 1 . Kicked . | . . . . . . . . . . . . Crushed . | . . . . . . . . . . . . Highest Temperature 677 | . 28 . 72 . 228 7 . . 157 287 677 Average Temperature 118 | . 9 . 28 . 54 7 . . 94 72 169 Received Heat Transfer 2728 | . 159 48 27 . 411 121 . . 33 499 1430 Effects 38 | . . . . . . . . . . . 38 Shutdowns 12 | . . . . . . . . . . . 12 Energy Bleed 7 | . . . . . . . . . . . 7 Interference 3 | . . . . . . . . . . . 3 Matter Decay 4 | . . . . . . . . . . . 4 Short Circuit 2 | . . . . . . . . . . . 2 Damage (minor) 4 | . . . . . . . . . . . 4 Damage (major) 5 | . . . . . . . . . . . 5 Damage (core) 1 | . . . . . . . . . . . 1 Siege Activations . | . . . . . . . . . . . . Robots Corrupted 3 | . . . . . . . . . . 1 2 Combat Hostiles 3 | . . . . . . . . . . 1 2 Parts Fried 5 | . . . . . . . . . . 1 4 Impact Corruptions . | . . . . . . . . . . . . Robots Melted 8 | . . . . . . 3 . . 1 4 . Combat Hostiles 6 | . . . . . . 3 . . 1 2 . Parts Melted 11 | . . . . . . 3 . . 3 3 2 Heat Transferred 2575 | . . . . . 400 . . . . 1150 1025 Parts Sabotaged . | . . . . . . . . . . . . Parts Stolen . | . . . . . . . . . . . . Parts Stripped . | . . . . . . . . . . . . Power Chain Reactions 5 | . . . . . . . . . . . 5 Alert | -11 -10 -10 -8 -8 -6 -6 -6 -6 -5 -5 -5 ------- Run | Yrd Mat Sub Rec Scr Fac Low Low Dat Pro Fac Ext Peak Influence 1136 | 20 232 . 181 . 553 . . . . 745 1136 Initial 347 | . 13 . 81 . . . . . . 300 347 Average 387 | 7 91 . 56 . 119 . . . . 489 853 Maximum Alert Level 4 | . 1 . . . 2 . . . . 3 4 Low Security (%) 44 | 100 87 . 100 . 78 . . . . . . Level 1 11 | . 12 . . . 14 . . . . 25 5 Level 2 15 | . . . . . 6 . . . . 56 6 Level 3 27 | . . . . . . . . . . 18 87 Level 4 . | . . . . . . . . . . . . Level 5 . | . . . . . . . . . . . . High Security . | . . . . . . . . . . . . Max Security . | . . . . . . . . . . . . Squads Dispatched 28 | . 2 . . . 10 . . . . 10 6 Investigation 7 | . . . . . 5 . . . . 2 . Extermination 6 | . . . . . 4 . . . . 2 . Reinforcement 4 | . 2 . . . 1 . . . . 1 . Assault 8 | . . . . . . . . . . 2 6 Garrison 3 | . . . . . . . . . . 3 . Intercept . | . . . . . . . . . . . . Searches Triggered 1 | . . . . . . . . . . 1 . Data Miner Redirects 4 | . . . . . . . . . . 1 3 Construction Impeded 1 | . . . . . 1 . . . . . . Haulers Reinforced 1 | . . . . . . . . . . 1 . Active Scanning Responses . | . . . . . . . . . . . . Cargo Convoy Interrupts . | . . . . . . . . . . . . Stealth | -11 -10 -10 -8 -8 -6 -6 -6 -6 -5 -5 -5 --------- Run | Yrd Mat Sub Rec Scr Fac Low Low Dat Pro Fac Ext Distress Signals 6 | . 3 . . . 2 . . . . 1 . Communications Jammed 59 | . . . . . . . . . . 13 46 Distress Signals 59 | . . . . . . . . . . 13 46 Times Spotted 195 | . 15 13 1 . 29 10 . . 10 42 75 Peak Tracking Total 12 | . 3 3 1 . 4 4 . . 4 5 12 Tactical Retreats 14 | . 2 1 . . . . . . 2 2 7 Traps | -11 -10 -10 -8 -8 -6 -6 -6 -6 -5 -5 -5 ------- Run | Yrd Mat Sub Rec Scr Fac Low Low Dat Pro Fac Ext Traps Triggered 6 | . . 1 . . 1 . . . . 2 2 Indirectly . | . . . . . . . . . . . . Trap Hack Attempts . | . . . . . . . . . . . . Triggered . | . . . . . . . . . . . . Disarmed . | . . . . . . . . . . . . Reprogrammed . | . . . . . . . . . . . . Reused . | . . . . . . . . . . . . Traps Extracted . | . . . . . . . . . . . . Installed . | . . . . . . . . . . . . Triggered . | . . . . . . . . . . . . Most Traps Carried 1 | . . . . 1 1 1 1 1 1 1 1 Machines | -11 -10 -10 -8 -8 -6 -6 -6 -6 -5 -5 -5 ---------- Run | Yrd Mat Sub Rec Scr Fac Low Low Dat Pro Fac Ext Machines Disabled 25 | . . 5 . . 6 . . . . 10 4 Max in Single Turn 5 | . . 3 . . 5 . . . . 2 1 Garrison Access 1 | . . . . . 1 . . . . . . Energy Cycler 2 | . . . . . . . . . . . 2 Machines Repaired . | . . . . . . . . . . . . Machines Dismantled . | . . . . . . . . . . . . Machines Sabotaged . | . . . . . . . . . . . . Overloaded Fab Kills . | . . . . . . . . . . . . Hacking | -11 -10 -10 -8 -8 -6 -6 -6 -6 -5 -5 -5 --------- Run | Yrd Mat Sub Rec Scr Fac Low Low Dat Pro Fac Ext Machines Accessed 41 | . 3 2 9 6 9 . . 4 . 7 1 Terminals 16 | . 3 . 4 . 3 . . . . 5 1 Fabricators 3 | . . . . . 2 . . . . 1 . Repair Stations 1 | . . . . . 1 . . . . . . Recycling Units 7 | . . . 5 . 2 . . . . . . Scanalyzers . | . . . . . . . . . . . . Garrison Access 2 | . . . . . 1 . . . . 1 . Total Hacks 163 | . 7 14 27 28 27 . . 33 . 25 2 Successful 115 | . 3 14 14 28 14 . . 33 . 8 1 Failed 48 | . 4 . 13 . 13 . . . . 17 1 Catastrophic 9 | . . . 3 . 4 . . . . 2 . Database Lockouts . | . . . . . . . . . . . . Manual 38 | . 4 . 19 . 10 . . . . 5 . Terminals 62 | . 7 . 17 . 14 . . . . 22 2 Fabricators 7 | . . . . . 6 . . . . 1 . Repair Stations 1 | . . . . . 1 . . . . . . Recycling Units 13 | . . . 10 . 3 . . . . . . Scanalyzers . | . . . . . . . . . . . . Garrison Access 5 | . . . . . 3 . . . . 2 . Terminal Hacks 95 | . 1 14 6 28 7 . . 33 . 5 1 Record 48 | . . 13 1 23 . . . 11 . . . Part Schematic 16 | . . . 2 . 1 . . 11 . 1 1 Robot Schematic 8 | . . . . . . . . 8 . . . Robot Analysis 5 | . . . 1 4 . . . . . . . Prototype ID Bank 5 | . . . 1 . 1 . . 3 . . . Branch Access Points 2 | . . . . . 1 . . . . 1 . Unreport Threat 4 | . . . 1 . 2 . . . . 1 . Locate Traps 3 | . 1 . . . 1 . . . . 1 . Patrol Status 1 | . . . . . 1 . . . . . . Zone Layout 1 | . . . . . . . . . . 1 . Derelict Proto ID Bank 2 | . . 1 . 1 . . . . . . . Fabricator Hacks 1 | . . . . . 1 . . . . . . Network Status 1 | . . . . . 1 . . . . . . Repair Station Hacks 1 | . . . . . 1 . . . . . . Scan Component 1 | . . . . . 1 . . . . . . Recycling Unit Hacks 2 | . . . 2 . . . . . . . . Retrieve Components 2 | . . . 2 . . . . . . . . Scanalyzer . | . . . . . . . . . . . . Garrison Access Hacks . | . . . . . . . . . . . . Unauthorized Hacks 15 | . 2 . 5 . 5 . . . . 3 . Terminals 7 | . 2 . . . 2 . . . . 3 . Track 3 | . 1 . . . . . . . . 2 . Assimilate 2 | . . . . . 2 . . . . . . Disrupt 1 | . . . . . . . . . . 1 . Operators 1 | . 1 . . . . . . . . . . Fabricators . | . . . . . . . . . . . . Repair Stations 2 | . . . . . 2 . . . . . . Recycling Units 5 | . . . 5 . . . . . . . . Tunnel 5 | . . . 5 . . . . . . . . Fedlink 2 | . . . . . 2 . . . . . . Scanalyzers . | . . . . . . . . . . . . Garrison Access 1 | . . . . . 1 . . . . . . Jam 1 | . . . . . 1 . . . . . . Data Cores Recovered . | . . . . . . . . . . . . Used . | . . . . . . . . . . . . Hacking Detections 24 | . 3 . 5 . 8 . . . . 7 1 Full Trace Events 6 | . . . 3 . 2 . . . . 1 . Feedback Events 1 | . . . . . . . . . . 1 . Corruption 1 | . . . . . . . . . . 1 . Feedback Blocked . | . . . . . . . . . . . . Robot Schematics Acquired 8 | . . . . . . . . 8 . . . Robots Built . | . . . . . . . . . . . . Authchips . | . . . . . . . . . . . . Time . | . . . . . . . . . . . . Total Robot Build Rating . | . . . . . . . . . . . . Part Schematics Acquired 16 | . . . 2 . 1 . . 11 . 1 1 Parts Built . | . . . . . . . . . . . . Authchips . | . . . . . . . . . . . . Time . | . . . . . . . . . . . . Total Part Build Rating . | . . . . . . . . . . . . Parts Repaired . | . . . . . . . . . . . . Time . | . . . . . . . . . . . . Parts Recycled . | . . . . . . . . . . . . Recycled Matter . | . . . . . . . . . . . . Retrieved Matter . | . . . . . . . . . . . . Retrieved Components 4 | . . . 4 . . . . . . . . Parts Scanalyzed . | . . . . . . . . . . . . Part Schematics Acquired . | . . . . . . . . . . . . Parts Damaged . | . . . . . . . . . . . . Bothacking | -11 -10 -10 -8 -8 -6 -6 -6 -6 -5 -5 -5 ------------ Run | Yrd Mat Sub Rec Scr Fac Low Low Dat Pro Fac Ext Used RIF Installer . | . . . . . . . . . . . . Robots Hacked . | . . . . . . . . . . . . Non-combat . | . . . . . . . . . . . . Combat . | . . . . . . . . . . . . Robot Hacks Applied . | . . . . . . . . . . . . Relay Couplers Released . | . . . . . . . . . . . . Fabnet Peak Effective % . | . . . . . . . . . . . . Robots Rewired 18 | . . . . . . . . . . . 18 Allies Hacked 1 | . . . . . 1 . . . . . . Hacks Repelled . | . . . . . . . . . . . . Allies | -11 -10 -10 -8 -8 -6 -6 -6 -6 -5 -5 -5 -------- Run | Yrd Mat Sub Rec Scr Fac Low Low Dat Pro Fac Ext Total Allies 27 | . . . . . 7 . . . . . 20 Largest Group 10 | . . . . . 5 . . . . . 10 Highest-Rated Group 295 | . . . . . 235 . . . . . 295 Highest-Rated Ally 47 | . . . . . 47 . . . . . 39 Total Orders . | . . . . . . . . . . . . Ally Attacks 165 | . . . . . 54 . . . . . 111 Total Damage 3108 | . . . . . 1010 . . . . . 2098 Kills 19 | . . . . . 5 . . . . . 14 Allies Corrupted 4 | . . . . . 1 . . . . . 3 Allies Melted 1 | . . . . . . . . . . . 1 Intel | -11 -10 -10 -8 -8 -6 -6 -6 -6 -5 -5 -5 ------- Run | Yrd Mat Sub Rec Scr Fac Low Low Dat Pro Fac Ext Robot Analysis Total 5 | . . . 1 4 . . . . . . . Derelict Logs Recovered 8 | . . 2 . 3 . 1 1 . 1 . . Drone Launches 3 | . . . . . . . . . . . 3 Drone Recoveries 1 | . . . . . . . . . . . 1 Exploration | -11 -10 -10 -8 -8 -6 -6 -6 -6 -5 -5 -5 ------------- Run | Yrd Mat Sub Rec Scr Fac Low Low Dat Pro Fac Ext Turns Passed 15922 | 114 785 1447 1219 4907 2152 386 301 74 439 1807 2291 Spaces Moved 7881 | 62 324 532 460 1987 1405 343 273 83 404 916 1092 Core 7 | 5 . . . . . . . . . . 2 Treads 3921 | . 246 532 460 1987 693 . . . . . 3 Legs 449 | 57 78 . . . . . . . . . 314 Wheels 3504 | . . . . . 712 343 273 83 404 916 773 Hover . | . . . . . . . . . . . . Flight . | . . . . . . . . . . . . Fastest Speed 50 | 50 120 240 240 245 80 90 90 90 80 80 90 Average Speed 164 | 116 194 240 244 245 124 90 90 90 84 96 129 Slowest Speed 1000 | 120 240 240 245 245 245 90 90 90 90 120 1000 Overloaded Moves . | . . . . . . . . . . . . Propulsion Burnouts . | . . . . . . . . . . . . Robots Hopped . | . . . . . . . . . . . . Cave-ins Triggered . | . . . . . . . . . . . . Exploration Rate (%) 55 | 4 52 47 83 92 32 58 48 74 67 25 86 Regions Visited 11 Branch Regions 8 Pre-discovered Areas 9 | . . 1 5 2 . . . 1 . . . Known Exits Taken 3 | . . . . . 1 . . . 1 1 . Unknown Exits Taken 8 | 1 1 1 1 1 . 1 1 1 . . . Scrap Searched 13 | . . . . 6 . 1 2 . 4 . . Spaces Dug 54 | . . . . . 4 2 6 . 4 34 4 Terrain Destroyed 481 | . . 47 4 . 95 13 24 . 12 155 131 Melee . | . . . . . . . . . . . . Projectile 289 | . . . 4 . 6 13 24 . 12 125 105 AOE 191 | . . 47 . . 89 . . . . 30 25 Terrain Rammed . | . . . . . . . . . . . . Walls Destroyed . | . . . . . . . . . . . . Machines Disabled . | . . . . . . . . . . . . Actions | -11 -10 -10 -8 -8 -6 -6 -6 -6 -5 -5 -5 --------- Run | Yrd Mat Sub Rec Scr Fac Low Low Dat Pro Fac Ext Total 9751 | 85 416 610 496 2035 1644 397 304 82 463 1526 1693 Wait 623 | 1 16 12 . . 34 23 3 . 27 322 185 Move 7870 | 61 323 531 459 1986 1404 342 272 82 403 915 1092 Hop . | . . . . . . . . . . . . Pick Up 111 | 8 19 8 1 16 28 1 . . 1 20 9 Fast Attach 70 | 7 5 1 2 6 12 . . . . 14 23 Attach 48 | . . 6 1 2 14 . . . 2 12 11 Detach 7 | . . . . . 1 . . . . 5 1 Swap 38 | . 2 4 1 2 14 . . . . 6 9 Drop 106 | . 15 4 2 23 34 2 . . . 20 6 Fire 702 | 8 35 44 30 . 102 29 29 . 30 197 198 Melee . | . . . . . . . . . . . . Ram 2 | . . . . . 1 . . . . 1 . Kick . | . . . . . . . . . . . . Crush 1 | . 1 . . . . . . . . . . Escape Stasis 16 | . . . . . . . . . . . 16 Rewire 157 | . . . . . . . . . . 14 143 Trap . | . . . . . . . . . . . . Miscellaneous . | . . . . . . . . . . . . Route ------- -11/Scrapyard -10/Materials (discovered 2 exits: [*Mat] / *Sub) -10/Subcaves (discovered 2 exits: [*Mat] / *Rec) -8/Recycling (discovered 2 exits: *Fac / *Scr) -8/Scraptown (discovered 2 exits: *Fac x2) -6/Factory (discovered 2 exits: *Low x2) -6/Lower Caves -6/Lower Caves (discovered 2 exits: *Fac / *Dat) -6/Data Miner -5/Proximity Caves -5/Factory (discovered 4 exits: *Upp x2 / *Ext x2) -5/Extension (discovered 1 exit: [*Fac]) History --------- Turn | Location | Event 14 | -11/Scrapyard | Discovered new exit (range 16) 115 | -11/Scrapyard | Entered Materials 277 | -10/Materials | Discovered new exit (range 16) 326 | -10/Materials | Build established: Mutant 889 | -10/Materials | Discovered new exit (range 5) 900 | -10/Materials | Entered Subcaves 922 | -10/Subcaves | Ambushed by Subdweller buried in earth 936 | -10/Subcaves | Core integrity fell below 50% 1065 | -10/Subcaves | A swath of the cavern ceiling suddenly collapsed 1087 | -10/Subcaves | Learned location of 2 exits from Materials 1618 | -10/Subcaves | Discovered new exit (range 11) 1847 | -10/Subcaves | Visited 4L-MR0's lab 1874 | -10/Subcaves | Found Powered Cannon 2204 | -10/Subcaves | Learned 2 Materials zone layouts 2206 | -10/Subcaves | Visited Clippyterm 2213 | -10/Subcaves | Learned location of Extension (-5) 2213 | -10/Subcaves | Learned Factory garrison access intel 2296 | -10/Subcaves | Discovered new exit (range 14) 2347 | -10/Subcaves | Entered Recycling 3367 | -8/Recycling | Discovered new exit (range 8) 3490 | -8/Recycling | Scanned before Scraplab entrance 3526 | -8/Recycling | Entered Scraplab 3561 | -8/Recycling | Discovered new exit (range 3) 3566 | -8/Recycling | Entered Scraptown 3932 | -8/Scraptown | Visited UFD Registry 3932 | -8/Scraptown | Registered with UFD as "Flexitalker" 3971 | -8/Scraptown | Visited Cyclists 4008 | -8/Scraptown | Entered Cyclist Reading Room 4062 | -8/Scraptown | Visited Fellowship of the Rings 4194 | -8/Scraptown | Scanned Subdweller tech in exchange for log data 4201 | -8/Scraptown | Learned location of Warlord (-4) 4204 | -8/Scraptown | Learned 8 Research zone layouts 4206 | -8/Scraptown | Learned location of 1 exit from Proximity Caves 4233 | -8/Scraptown | Discovered new exit (range 11) 5040 | -8/Scraptown | Visited Awakened 5119 | -8/Scraptown | Visited Red Mages 5190 | -8/Scraptown | Visited Symbiants 5363 | -8/Scraptown | Visited Spacefarers 5486 | -8/Scraptown | Visited Bundlers 6139 | -8/Scraptown | Visited Infowarlord's Domain 6155 | -8/Scraptown | Found Exp. Terrain Scan Processor 6547 | -8/Scraptown | Visited Cartography Club 6598 | -8/Scraptown | Found Surveybot 17 Chip 6675 | -8/Scraptown | Visited Botcube Research 6746 | -8/Scraptown | Visited Science Testing Area 6861 | -8/Scraptown | Visited Analyses Database 6940 | -8/Scraptown | Visited Chapter 10 7082 | -8/Scraptown | Visited Scrapoid Pod Storage 7177 | -8/Scraptown | Visited Science Guys 7338 | -8/Scraptown | Delivered Scrap Shield to a Scientist 7576 | -8/Scraptown | Visited Abandonware Association 7649 | -8/Scraptown | Learned abandonware demo "SHUTEYE.EXE" 7649 | -8/Scraptown | Learned abandonware demo "MELTYB.EXE" 7703 | -8/Scraptown | Visited Junk Repository 8167 | -8/Scraptown | Found Scrap Suit 8251 | -8/Scraptown | Discovered new exit (range 3) 8367 | -8/Scraptown | Found Scrapoid Pod 8473 | -8/Scraptown | Entered Factory 8473 | -6/Factory | Evolved 8 slots: Propulsion x2, Utility x6 8474 | -6/Factory | Loaded intel: 4 garrison access locations 9711 | -6/Factory | Scrapoid Pod released 06F05-D (x5) 9842 | -6/Factory | Spotted B-75 Beast 9853 | -6/Factory | Allies destroyed B-75 Beast 9871 | -6/Factory | Found Scrap Suit 9989 | -6/Factory | Identified exit to Lower Caves 10228 | -6/Factory | Attached Powered Cannon, gained temporary slot: Power 10257 | -6/Factory | Build established: Scavenger-Scrapper 10625 | -6/Factory | Entered Lower Caves 10627 | -6/Lower Caves | UFD Scientist delivered a prototype 10629 | -6/Lower Caves | Found Prototype Protection 10840 | -6/Lower Caves | Encountered a Warlord checkpoint 10972 | -6/Lower Caves | Discovered new exit (range 21) 11011 | -6/Lower Caves | Entered another Lower Caves area 11022 | -6/Lower Caves | Discovered new exit (range 12) 11067 | -6/Lower Caves | Encountered a Warlord checkpoint 11300 | -6/Lower Caves | Discovered new exit (range 8) 11312 | -6/Lower Caves | Entered Data Miner 11312 | -6/Data Miner | Discovered new exit (range 6) 11324 | -6/Data Miner | Met Data Miner 11348 | -6/Data Miner | Learned location of Section 7 (-2) 11348 | -6/Data Miner | Acquired the access code to Warlord's prototype stash 11361 | -6/Data Miner | Received God Mode back door access code from Data Miner 11386 | -6/Data Miner | Entered Proximity Caves 11387 | -5/Proximity Caves | Identified exit to Factory 11388 | -5/Proximity Caves | Learned Factory machine intel 11472 | -5/Proximity Caves | Spotted B-75 Beast 11522 | -5/Proximity Caves | Spotter reported a threat 11721 | -5/Proximity Caves | Spotter reported a threat 11825 | -5/Proximity Caves | Entered Factory 11825 | -5/Factory | Evolved 2 slots: Power x1, Utility x1 11826 | -5/Factory | Identified exit to Extension 11827 | -5/Factory | Loaded intel: 268 machine locations 11900 | -5/Factory | Garrison activated, responded to threat 11952 | -5/Factory | System corruption reached 10% 12001 | -5/Factory | Lost 7 parts (1p5u1w) 12125 | -5/Factory | Search patrols dispatched 12233 | -5/Factory | Identified exit to Upper Caves 12515 | -5/Factory | Identified Enh. Scrap Shield 13091 | -5/Factory | Build established: Scavenger-Mutant 13160 | -5/Factory | Found Powered Armor 13325 | -5/Factory | First assault squad dispatched 13340 | -5/Factory | Incoming assault squad redirected 13632 | -5/Factory | Entered Extension 13655 | -5/Extension | Disrupted transfer network 13709 | -5/Extension | Rescued a captive Derelict 13717 | -5/Extension | Energy Cycler disabled 13721 | -5/Extension | Rescued a captive Derelict 13723 | -5/Extension | Rescued a captive Derelict 13728 | -5/Extension | Rescued a captive Derelict 13932 | -5/Extension | First assault squad dispatched 13952 | -5/Extension | Incoming assault squad redirected 14259 | -5/Extension | Incoming assault squad redirected 14423 | -5/Extension | Lost 3 allies 14767 | -5/Extension | Spotted B-75 Beast 14787 | -5/Extension | Destroyed B-75 Beast 14808 | -5/Extension | Discovered new exit (range 16) 14870 | -5/Extension | Core integrity fell below 50% 14877 | -5/Extension | Lost 5 allies 14901 | -5/Extension | Lost 11 parts (1p2n4u4w) 15062 | -5/Extension | Extracted ID and sensor layout for unrecognized location from A7's data core 15080 | -5/Extension | Lost 3 parts (1p2u) 15150 | -5/Extension | Incoming assault squad redirected 15200 | -5/Extension | Lost 3 parts (1n1u1w) 15769 | -5/Extension | Core integrity fell below 20% 15808 | -5/Extension | System corruption reached 30% 15874 | -5/Extension | Lost 8 allies 15923 | -5/Extension | Destroyed by D-63 Destroyer with Heavy Rocket Launcher Last Messages --------------- 15910_ Door Terminal disabled. 15911_ Hvy. Shock Bomb intercepted. 15911_ Carbon-fiber Leg destroyed. 15915_ The unstable cave ceiling collapses. 15915_ Hvy. Shock Bomb intercepted. 15916_ The unstable cave ceiling collapses. 15916_ Imp. Medium Armor Plating destroyed. 15917_ The unstable cave ceiling collapses. 15918_ Carbon-fiber Leg destroyed. 15918_ Hvy. Shock Bomb Launcher destroyed. 15920_ The unstable cave ceiling collapses. 15920_ Hvy. Shock Bomb intercepted. 15921_ The unstable cave ceiling collapses. 15921_ Core Shielding destroyed. 15921_ Com. Particle Reactor destroyed. 15922_ System corrupted: Matter fused (-10). 15922_ Door malfunctions. 15923_ D-63 Destroyer system terminally corrupted. 15923_ Mic. Fission Core fried. 15923_ Hvy. Rocket Launcher fried. Map ----- +----------------------------------------------------+ | | | | | | | | | | | | | | | | | | | | | | | | | | | | | | | ?????????????????????????????????????????????????? | | ???????????????????????????????#??????#??????????? | | ###########????????????????????????##????#???#???? | | #???????????####??????????????#????##### | | #???????????# #?##???#????????????# | | #?#???????###% ## ###?#????????????# | | #?????????# #######????????# | | ####+################ #????????# | | ^ ############## | | ^ g #????? | | g @ #????? | | ^ %i = [!* ##???? | | ^ d %= % != ##### #?#??? | | ###+#+############/## /=%#??## ##???? | | %![ ###%![ ####[##??# #???# | | = %! ** #?# ######## #???# ##### | | * *#?# = + #???# | | #?# ###########???# ##### | | / #?#[ #?????????????# #???? | | #?# % / #????????????########???# | | ################?##;######????????????#??????????? | | ??????????????????###?????????????#???????????#??? | | ?????????????????????????????????????????????????? | | ??????????????????????????????#??????????????????? | | ????????????????????????????????#?????#?????????#? | | ??????????????????????????????????????#????????#?# | | ?????????????????????#?????????#?????????????????? | | ?????????????????????????????????????????????????? | | ???????????????????????????????????#????????#????? | | ????????????????????????????????????????#????????? | | ?????????????????????????????????????????????????? | | ??????????????????????????????????#??????????????? | | ?????????????????????????????????????????????????? | | ???????????????????????????????????????????#?????? | | ?????????????????????????????????????????????????? | +----------------------------------------------------+ Best States ------------- Heat Dissipation 67 Energy Generation 37 Energy Capacity 1060 Matter Stores 300 Matter Capacity 300 Sight Range 22 Terrain Scan Range 20 Terrain Scan Density 1210 Jamming Range 14 Additional Mass Support 16 Armor Coverage 1425 Resistance: KI 20 Core Shielding 20 Propulsion Shielding 33 Weapon Cycling 20 Evasion (%) 55 Targeting Accuracy 8 Target Analysis 6 Armor Integrity Analysis 30 Recoil Reduction 4 Particle Charging 20 Kinecelleration 30 Item Schematics ----------------- Lrg. Storage Unit | -8/Recycling | Hacked Hcp. Storage Unit | -8/Recycling | Hacked Transmission Jammer | -6/Factory | Hacked Enh. Force Lance | -6/Data Miner | Free Adv. Thermal Shield | -6/Data Miner | Free Adv. Shield Generator | -6/Data Miner | Free Adv. Datajack | -6/Data Miner | Free Adv. Transmission Jammer | -6/Data Miner | Free Imp. Linear Gravjet | -6/Data Miner | Free Enh. Coil Gun | -6/Data Miner | Free Imp. Energy Well | -6/Data Miner | Free Enh. Flexi-carbon Leg | -6/Data Miner | Free Lgt. Regenerative Plating | -6/Data Miner | Free Combat Drone Bay | -6/Data Miner | Free Adv. Cooling System | -5/Factory | Hacked Hvy. Siege Treads | -5/Extension | Hacked Robot Schematics ------------------ A-15 Conveyor | -6/Data Miner | Free G-67 Veteran | -6/Data Miner | Free B-60 Warrior | -6/Data Miner | Free X-67 Chaingunner | -6/Data Miner | Free Y-54 Guardian | -6/Data Miner | Free S-27 Virus | -6/Data Miner | Free L-41 Fighter | -6/Data Miner | Free G-50 Soldier | -6/Data Miner | Free Fabricated ------------ Nothing Alien Tech Used ----------------- None Achievements -------------- None Challenges ------------ None Game ------ Seed DirtyChipBoregun Manual? 0 Play Time 01:42:28 Cumulative 701.3 hours Start 2025.03.29 @ 16:56:46 End 2025.03.29 @ 22:55:19 Sessions 3 Manual Loads 0 Difficulty Rogue Special Mode None Game No. 443 Rogue 443 Adventurer 0 Explorer 0 Win Type - Total 9 Types 6/0/1/1/1/0/0/0/0 Lore% 75 Gallery% 85 Achievement% 75 Wizard Run 0 Options --------- Layout 0 ASCII 0 Keyboard 0 Movement Mouse Keybinds 1 Fullscreen 2 Font 24/Smallcaps Map View 76x50 Zoom Use 0% Tactical HUD 1 Map Filters NONE Filters NONE Steam 1 RUN: 6161205e-735d-4bd2-95df-f24c9fe1a01b